Cogmind - Beta 16 @@@ ROGUE MODE // 2025.11.24 @ 16:27:34 Player: Dadrick Result: Destroyed by XC-57L(R) with Subdweller Machine Gun Performance ------------- Evolutions (0) 0 Regions Visited (3) 600 Robots Destroyed (33) 165 Value Destroyed (828) 828 Prototype IDs (0) 0 Alien Tech Used (0) 0 Bonus (0) 0 TOTAL SCORE: 1593 Bonus ------- None Cogmind --------- Core Integrity 0/250 Matter 130/300 Energy 250/250 System Corruption 0% Temperature Cool (0) Movement Walking (190) Ox1 Location -10/Subcaves Parts ------- > --- POWER (1) -------- Ion Engine > --- PROPULSION (2) --- Aluminum Leg Aluminum Leg > --- UTILITY (2) ------ Large Storage Unit Seismic Detector > --- WEAPON (2) ------- Improved Light Cannon Battle Cannon > --- INVENTORY (15) --- Large Matter Pod (150) Tractor Beam Riot Gun Subdweller Beam Cannon Subdweller Machine Gun Improved Light Cannon Improved Light Cannon Subdweller Shrapnel Launcher Multitool Hammer Peak State ------------ > --- POWER ------------ Ion Engine > --- PROPULSION ------- Aluminum Leg Aluminum Leg > --- UTILITY ---------- Large Storage Unit Medium Armor Plating > --- WEAPON ----------- Improved Light Cannon Improved Light Cannon > --- INVENTORY -------- Ion Engine Aluminum Leg Aluminum Leg Aluminum Leg Large Matter Pod Seismic Detector Light Armor Plating Medium Armor Plating Tractor Beam Improved Light Cannon Improved Light Cannon Rocket Launcher Mining Laser Multitool Hammer [Rating: 12] Favorites ----------- Power Ion Engine Engine Ion Engine Propulsion Aluminum Leg Leg Aluminum Leg Utility Large Storage Unit Device Seismic Detector Storage Large Storage Unit Protection Medium Armor Plating Weapon Improved Light Cannon Energy Gun Medium Laser Ballistic Gun Light Assault Rifle Ballistic Cannon Improved Light Cannon Launcher Rocket Launcher Special Weapon Mining Laser Impact Weapon Hammer Build | -11 -10 -10 -10 ------- Run | Yrd Mat Min Sub Slots Evolved . | . . . . Power . | . . . . Propulsion . | . . . . Utility . | . . . . Weapon . | . . . . Parts Attached 25 | 7 6 2 10 Power 2 | 1 . . 1 Engine 2 | 1 . . 1 Core . | . . . . Reactor . | . . . . Propulsion 5 | 2 . . 3 Treads . | . . . . Leg 5 | 2 . . 3 Wheel . | . . . . Hover . | . . . . Flight . | . . . . Utility 7 | 2 2 1 2 Device 2 | 1 . . 1 Storage 3 | 1 2 . . Processor . | . . . . Hackware . | . . . . Protection 2 | . . 1 1 Artifact . | . . . . Weapon 11 | 2 4 1 4 Energy Gun 1 | 1 . . . Energy Cannon . | . . . . Ballistic Gun 1 | 1 . . . Ballistic Cannon 5 | . 3 . 2 Launcher 2 | . . . 2 Special Weapon 1 | . 1 . . Impact Weapon 1 | . . 1 . Slashing Weapon . | . . . . Piercing Weapon . | . . . . Special Melee Weapon . | . . . . Unidentified Prototypes . | . . . . Parts Lost 8 | . . . 8 Power 1 | . . . 1 Propulsion 3 | . . . 3 Utility 2 | . . . 2 Weapon 2 | . . . 2 Highest Loss Streak 3 | . . . 3 To Critical Strikes . | . . . . Average Backups 11 | 1 8 13 13 Power . | . 1 1 . Propulsion 1 | . 1 3 2 Utility 3 | . 3 4 3 Weapon 5 | . 2 4 6 Tool/Special . | . . . . Unused Backups 11 | . 4 . 7 Power . | . . . . Propulsion . | . . . . Utility 3 | . 1 . 2 Weapon 6 | . 3 . 3 Tool/Special 2 | . . . 2 Average Slot Usage (%) 99 | . 99 100 99 Engine 14 | . 14 14 14 Leg 27 | . 28 28 27 Device 9 | . 14 13 7 Storage 14 | . 14 14 14 Protection 4 | . . . 6 Energy Gun 1 | . 5 . . Ballistic Gun 1 | . 6 . . Ballistic Cannon 19 | . 15 15 21 Launcher 2 | . . . 3 Impact Weapon 2 | . . 12 2 Peak Build Rating 12 | 7 10 11 12 Average Rating 10 | 5 8 9 10 On Entrance 7 | . 7 10 11 Avg Prop Armor Cover (%) . | . . . . Naked Turns . | . . . . Heaviest Build 40 | 14 34 40 40 Greatest Support 20 | 20 20 20 20 Greatest Overweight (x) 1 | . 1 1 1 Average Overweight (x) . | . . 1 1 Largest Inventory Capacity 15 | 8 15 15 15 Average Capacity 13 | 7 11 15 15 Most Carried 15 | 3 11 14 15 Average Carried 12 | 1 8 13 13 Final Capacity 15 | 8 15 15 15 Final Carried 14 | 3 11 14 10 Class Distribution -------------------- 100% | Mutant Dominant Class ---------------- Mutant | -10/Materials Mutant | -10/Mines Mutant | -10/Subcaves Resources | -11 -10 -10 -10 ----------- Run | Yrd Mat Min Sub Matter Collected 1721 | 279 314 48 1080 Remotely 297 | . . . 297 Salvage Created 772 | 107 238 48 379 Parts 63 | 11 20 . 32 Haulers Intercepted 1 | . 1 . . Recyclers Shooed 1 | 1 . . . Parts Field Recycled . | . . . . Retrieved Matter . | . . . . Parts Self-Destructed 20 | . . . 20 Prevented . | . . . . Parts Restored . | . . . . Kills | -11 -10 -10 -10 ------- Run | Yrd Mat Min Sub Combat Hostiles Destroyed 28 | . 7 . 21 Guns 4 | . 4 . . Cannons 10 | . 3 . 7 AOE 14 | . . . 14 Classes Destroyed 8 | 2 4 . 2 Tunneler 2 | 2 . . . Hauler 1 | . 1 . . Recycler 1 | 1 . . . Watcher 1 | . 1 . . Swarmer 10 | . 3 . 7 Grunt 5 | . 4 . 1 Artisan 1 | . . . 1 Subdweller 13 | . . . 13 Best Kill Streak 3 | 2 3 . 3 Combat Bots Only 3 | . 3 . 3 Max Kills in Single Turn 3 | 1 1 . 3 Gunslinging . | . . . . Exploded 3 | . . . 3 Melee . | . . . . Uniques/NPCs Destroyed . | . . . . Combat | -11 -10 -10 -10 -------- Run | Yrd Mat Min Sub Hostile Shots Fired 86 | . 12 . 74 Missed 20 | . 4 . 16 Hits 66 | . 8 . 58 Projectile 66 | . 8 . 58 AOE 8 | . . . 8 Critical Strikes 1 | . . . 1 Damage Taken 1364 | . 64 . 1300 Core 255 | . 14 . 241 Absorbed by Shields . | . . . . Core Remaining (%) 100 | 100 . . . Volleys Fired 133 | 9 30 . 94 Largest 2 | 2 2 . 2 Hottest 100 | 70 100 . 66 Shots Fired 206 | 18 57 . 131 Gun 42 | 18 24 . . Cannon 133 | . 30 . 103 Launcher 28 | . . . 28 Special 3 | . 3 . . Kinetic 159 | 9 42 . 108 Thermal 24 | 9 15 . . Explosive 23 | . . . 23 Electromagnetic . | . . . . Robot Hit Streak 18 | 5 4 . 18 Robot Miss Streak 5 | 1 5 . 4 Penetration Max . | . . . . Secondary Targets 1 | . 1 . . Max Gunslinging Chain 1 | . 1 . . Shots Hit Robots 92 | 11 22 2 57 Core Hits 47 | 5 12 . 30 Critical Kills . | . . . . Critical Parts Destroyed 1 | . . 1 . Critical Strikes 4 | . . 1 3 Blast 3 | . . . 3 Smash 1 | . . 1 . Melee Attacks 18 | . . 5 13 Impact 18 | . . 5 13 Slashing . | . . . . Piercing . | . . . . Sneak Attacks . | . . . . Combat Hostiles . | . . . . Follow-up Attacks . | . . . . Damage Inflicted 2930 | 125 335 116 2354 Guns 261 | 125 136 . . Cannons 1140 | . 199 . 941 Explosions 1413 | . . . 1413 Melee 116 | . . 116 . Ramming . | . . . . Kinetic 1405 | 49 221 . 1135 Thermal 190 | 76 114 . . Explosive 1219 | . . . 1219 Electromagnetic . | . . . . Impact 116 | . . 116 . Slashing . | . . . . Piercing . | . . . . Highest Corruption . | . . . . Average Corruption . | . . . . Corruption Purged . | . . . . Corruption Blocked . | . . . . Overload Shots . | . . . . Overflow Damage 117 | . 6 92 19 Projectiles 25 | . 6 . 19 Explosions . | . . . . Melee 92 | . . 92 . Knockbacks 14 | . 3 1 10 Impact 1 | . . 1 . Kinetic 13 | . 3 . 10 Secondary . | . . . . Self-Inflicted Damage 15 | . . . 15 Shots 1 | . . . 1 Rammed . | . . . . Targets Rammed . | . . . . Kicked . | . . . . Crushed . | . . . . Highest Temperature 100 | 100 80 . . Average Temperature 25 | 45 19 . . Received Heat Transfer 99 | . 12 . 87 Siege Activations . | . . . . Martial Activations . | . . . . Shielding Activations . | . . . . Robots Disrupted . | . . . . Combat Hostiles . | . . . . Robots Corrupted . | . . . . Combat Hostiles . | . . . . Parts Fried . | . . . . Impact Corruptions 2 | . . 2 . Robots Melted . | . . . . Combat Hostiles . | . . . . Parts Melted . | . . . . Heat Transferred 555 | 222 333 . . Parts Sabotaged . | . . . . Parts Stolen . | . . . . Parts Stripped . | . . . . Power Chain Reactions . | . . . . Alert | -11 -10 -10 -10 ------- Run | Yrd Mat Min Sub Maximum Alert Level . | . . . . Low Security (%) 100 | 100 100 100 . Level 1 . | . . . . Level 2 . | . . . . Level 3 . | . . . . Level 4 . | . . . . Level 5 . | . . . . High Security . | . . . . Max Security . | . . . . Peak Influence 70 | 5 70 13 . Initial 13 | . . 13 . Average 8 | 1 10 1 . Influence Increases 436 | 15 204 7 210 Destroy 0b10 Robot/C 300 | . 140 . 160 Destroy 0b10 Robot/NC 30 | 15 10 5 . Destroy Leader 44 | . 24 . 20 Successful Hack 25 | . 25 . . Destroy Structure 7 | . 5 2 . Lose Combat Pursuer 30 | . . . 30 Influence Decreases 436 | 15 170 41 210 Entered New Map 21 | . . 21 . Time Decay 335 | 15 170 20 130 Lost Part 70 | . . . 70 Lost Ally 10 | . . . 10 Squads Dispatched 1 | . 1 . . Investigation 1 | . 1 . . Extermination . | . . . . Reinforcement . | . . . . Assault . | . . . . Garrison . | . . . . Intercept . | . . . . Searches Triggered . | . . . . Construction Impeded . | . . . . Haulers Reinforced . | . . . . Active Scanning Responses . | . . . . Cargo Convoy Interrupts . | . . . . Stealth | -11 -10 -10 -10 --------- Run | Yrd Mat Min Sub Distress Signals 1 | . 1 . . Communications Jammed . | . . . . Distress Signals . | . . . . Times Spotted 44 | . 17 . 27 Peak Tracking Total 6 | . 3 . 6 Tactical Retreats 3 | . . . 3 Traps | -11 -10 -10 -10 ------- Run | Yrd Mat Min Sub Traps Triggered . | . . . . Indirectly . | . . . . Trap Hack Attempts . | . . . . Triggered . | . . . . Disarmed . | . . . . Reprogrammed . | . . . . Reused 1 | . . . 1 Traps Extracted . | . . . . Installed 1 | . . . 1 Triggered . | . . . . Most Traps Carried 1 | . . . 1 Machines | -11 -10 -10 -10 ---------- Run | Yrd Mat Min Sub Machines Disabled 1 | . 1 . . Max in Single Turn 1 | . 1 . . Machines Repaired . | . . . . Machines Dismantled . | . . . . Machines Sabotaged . | . . . . Overloaded Fab Kills . | . . . . Hacking | -11 -10 -10 -10 --------- Run | Yrd Mat Min Sub Machines Accessed 8 | . 8 . . Terminals 6 | . 6 . . Fabricators . | . . . . Repair Stations . | . . . . Recycling Units 2 | . 2 . . Scanalyzers . | . . . . Garrison Access . | . . . . Total Hacks 27 | . 27 . . Successful 14 | . 14 . . Failed 13 | . 13 . . Catastrophic . | . . . . Database Lockouts . | . . . . Manual 18 | . 18 . . Terminals 23 | . 23 . . Fabricators . | . . . . Repair Stations . | . . . . Recycling Units 4 | . 4 . . Scanalyzers . | . . . . Garrison Access . | . . . . Terminal Hacks 4 | . 4 . . Locate Traps 1 | . 1 . . Hauler Manifests 1 | . 1 . . Registered Components 1 | . 1 . . Zone Layout 1 | . 1 . . Fabricator Hacks . | . . . . Repair Station Hacks . | . . . . Recycling Unit Hacks 1 | . 1 . . Retrieve Components 1 | . 1 . . Scanalyzer . | . . . . Garrison Access Hacks . | . . . . Unauthorized Hacks 9 | . 9 . . Terminals 9 | . 9 . . Assimilate 1 | . 1 . . Botnet 1 | . 1 . . Operators 1 | . 1 . . Skim 6 | . 6 . . Fabricators . | . . . . Repair Stations . | . . . . Recycling Units . | . . . . Scanalyzers . | . . . . Garrison Access . | . . . . Data Cores Recovered . | . . . . Used . | . . . . Hacking Detections 6 | . 6 . . Full Trace Events 1 | . 1 . . Feedback Events . | . . . . Feedback Blocked . | . . . . Robot Schematics Acquired . | . . . . Robots Built . | . . . . Authchips . | . . . . Time . | . . . . Total Robot Build Rating . | . . . . Part Schematics Acquired . | . . . . Parts Built . | . . . . Authchips . | . . . . Time . | . . . . Total Part Build Rating . | . . . . Part Studies Acquired . | . . . . Parts Repaired . | . . . . Time . | . . . . Parts Recycled . | . . . . Recycled Matter . | . . . . Retrieved Matter . | . . . . Retrieved Components . | . . . . Parts Scanalyzed . | . . . . Part Schematics Acquired . | . . . . Parts Damaged . | . . . . Bothacking | -11 -10 -10 -10 ------------ Run | Yrd Mat Min Sub Used RIF Installer . | . . . . Robots Hacked . | . . . . Non-combat . | . . . . Combat . | . . . . Robot Hacks Applied . | . . . . Relay Couplers Released . | . . . . Fabnet Peak Effective % . | . . . . Robots Rewired . | . . . . Allies Hacked . | . . . . Hacks Repelled . | . . . . Allies | -11 -10 -10 -10 -------- Run | Yrd Mat Min Sub Total Allies 1 | . 1 . . Largest Group 1 | . 1 1 1 Highest-Rated Group 10 | . 10 10 10 Highest-Rated Ally 10 | . 10 10 10 Total Orders 14 | . 3 . 11 STAY 7 | . 1 . 6 ROAM 1 | . 1 . . FOLLOW 6 | . 1 . 5 Ally Attacks . | . . . . Total Damage . | . . . . Kills . | . . . . Allies Corrupted . | . . . . Allies Melted . | . . . . Intel | -11 -10 -10 -10 ------- Run | Yrd Mat Min Sub Active Infowar (turns) 3621 | 25 1563 272 1761 Seismic 3621 | 25 1563 272 1761 Robot Analysis Total . | . . . . Derelict Logs Recovered 1 | . . . 1 Drone Launches . | . . . . Drone Recoveries . | . . . . Exploration | -11 -10 -10 -10 ------------- Run | Yrd Mat Min Sub Turns Passed 5960 | 93 1563 277 4027 Spaces Moved 2649 | 50 626 91 1882 Core 7 | 7 . . . Treads . | . . . . Legs 2642 | 43 626 91 1882 Wheels . | . . . . Hover . | . . . . Flight . | . . . . Fastest Speed 50 | 50 120 190 190 Average Speed 180 | 110 156 190 190 Slowest Speed 190 | 120 190 190 190 Overloaded Moves . | . . . . Propulsion Burnouts . | . . . . Robots Hopped . | . . . . Potential Cave-ins . | . . . . Cave-ins Triggered . | . . . . Exploration Rate (%) 50 | 4 94 16 88 Regions Visited 3 Branch Regions 2 Pre-discovered Areas 2 | . . . 2 Known Exits Taken . | . . . . Unknown Exits Taken 3 | 1 1 1 . Scrap Searched 12 | . . . 12 Spaces Dug 24 | . 3 2 19 Terrain Destroyed 234 | . 4 2 228 Melee 5 | . . 2 3 Projectile 22 | . 4 . 18 AOE 207 | . . . 207 Terrain Rammed . | . . . . Walls Destroyed . | . . . . Machines Disabled . | . . . . Actions | -11 -10 -10 -10 --------- Run | Yrd Mat Min Sub Total 3571 | 68 1150 185 2168 Wait 675 | . 466 84 125 Move 2646 | 49 625 90 1882 Hop . | . . . . Pick Up 27 | 3 12 3 9 Fast Attach 9 | 7 2 . . Attach 8 | . . . 8 Detach 2 | . 2 . . Swap 39 | . 5 3 31 Drop 13 | . 8 . 5 Fire 133 | 9 30 . 94 Melee 18 | . . 5 13 Ram . | . . . . Kick . | . . . . Crush . | . . . . Escape Stasis . | . . . . Rewire . | . . . . Trap 1 | . . . 1 Miscellaneous . | . . . . Route ------- -11/Scrapyard -10/Materials (discovered 5 exits: [*Mat x3] / [*Min] / [*Sub]) -10/Mines -10/Subcaves (discovered 3 exits: [*Mat x2] / [*Scr]) History --------- Turn | Location | Event 5 | -11/Scrapyard | Discovered new exit (range 15) 94 | -11/Scrapyard | Entered Materials 165 | -10/Materials | Discovered new exit (range 6) 304 | -10/Materials | Build established: Mutant 361 | -10/Materials | Discovered new exit (range 10) 588 | -10/Materials | Discovered new exit (range 15) 594 | -10/Materials | Derelicts attacked the area 833 | -10/Materials | Discovered new exit (range 13) 908 | -10/Materials | Discovered new exit (range 21) 1657 | -10/Materials | Entered Mines 1657 | -10/Mines | Accompanied by 1 ally 1729 | -10/Mines | Received a Rocket Launcher from a helpful Derelict 1914 | -10/Mines | Discovered new exit (range 7) 1934 | -10/Mines | Entered Subcaves 1934 | -10/Subcaves | Accompanied by 1 ally 1935 | -10/Subcaves | Approached by a straggling Scientist 1960 | -10/Subcaves | Learned location of Zion (-7) 1960 | -10/Subcaves | Met a Zionite searching for "candidates" 2186 | -10/Subcaves | Scientist uncovered a shortcut to Scraptown 2312 | -10/Subcaves | A swath of the cavern ceiling suddenly collapsed 2495 | -10/Subcaves | A swath of the cavern ceiling suddenly collapsed 3240 | -10/Subcaves | Shifting Twisted Machinery released Sub. Beam Cannon 3243 | -10/Subcaves | Shifting Twisted Machinery released Sub. Optics 3758 | -10/Subcaves | Ambushed by Subdweller buried in earth 4039 | -10/Subcaves | Shifting Twisted Machinery released Flamer 4097 | -10/Subcaves | Shifting Twisted Machinery released Riot Gun 4183 | -10/Subcaves | Discovered new exit (range 14) 4576 | -10/Subcaves | Disturbed a concealed Subdweller 4942 | -10/Subcaves | Core integrity fell below 50% 4981 | -10/Subcaves | Shifting Twisted Machinery released Sub. Power Source 5007 | -10/Subcaves | Discovered new exit (range 12) 5472 | -10/Subcaves | Core integrity fell below 20% 5502 | -10/Subcaves | Lost 3 parts (1p1n1w) 5952 | -10/Subcaves | Disturbed a concealed Subdweller 5961 | -10/Subcaves | Destroyed by XC-57L(R) with Subdweller Machine Gun Last Messages --------------- 04989_ The unstable cave ceiling collapses. 05007_ EXIT=FOUND 05008_ Acquired 48 matter. 05010_ Acquired 33 matter. 05105_ Acquired 37 matter. 05184_ Acquired Piercing Trap. 05186_ Acquired 27 matter. 05465_ Rocket Launcher destroyed. 05467_ Technician 1a destroyed. 05469_ Aluminum Leg destroyed. 05471_ Ion Engine destroyed. 05473_ O0-OP2(R) destroyed. 05526_ Acquired 26 matter. 05654_ Acquired 33 matter. 05952_ XC-57L(R) angrily emerges from the Twisted Machinery. 05957_ Dropped Piercing Trap. 05957_ Installed Piercing Trap. 05958_ XC-57L(R) triggered Piercing Trap. 05958_ Spikes shoot up from the floor. 05958_ XC-57L(R) suffers critical hit (Impale). Map ----- +----------------------------------------------------+ | ????????# ## ###??#######??????? | | ????????## #### ### ###?## # ###????? | | ?????????####??# # ##?# #### # # #?###? | | ???????????##### # #?## # # # ### ## | | ???????????# ## # ### # # # | | ????????#### ## # # | | ????????# | #### ### ### | | ????????##|""" ### # # #??##### # # ! & "### | | ?????????# """""##?##### #??????#### & ###"# | | ????????## "#####??????#####????????## ##??# | | ??????### ##????????????????????????# < #???# | | ??????# ###???????????????????????# ##???## | | ??????# #???????????????????????######?????## | | ??????#""" #??????????????????????????????????? | | ??????##### #??????????????????????????????????? | | ???????????####??????????????????????????????????? | | ?????????????????????????????????????????????????? | | ?????????????????????????????????????????????????? | | ???????????????????########??????????????????????? | | ??????????????????## ##?????????????????????? | | ??????????????????# #### #??#??????????????????? | | ??????????????????# ##""## #?#" "????????????????? | | ??????????????????# #"$$& ##" "????????????????? | | ??????????????????# #"$$"# ##" " "???????????????? | | ??????????????????# ##""##R## """ ???????????????? | | ??????????????????# ####@ ## """"???????????????? | | ??????????????????# % ##"" "#?????????????### | | ??????????????????##### ###"" "##????????????# | | ??????????????????????# ####"" ""######?????### | | ??????????????????????# ###" # #????## | | ?????????????????????## ##" ##??### | | ????????????##???###?# ### ## "#??# | | ##?????????## #### #### #######" "#### # | | #?????????# # # ### " ## ## | | #???######?# #? | | ##### ## #?# # ###? | | #?## ### ## ### ##??? | | ##?# #?## ## ## #?####???? | | # ## # ### # #??## ####????????? | | ######### #######???# #???????????? | | ????????#### #?????????# ## ##???????????? | | ???????????## ##?????????## #######????????????? | | ????????????###???????????#####??????????????????? | | ?????????????????????????????????????????????????? | | ?????????????????????????????????????????????????? | | ?????????????????????????????????????????????????? | | ?????????????????????????????????????????????????? | | ?????????????????????????????????????????????????? | | ?????????????????????????????????????????????????? | | ?????????????????????????????????????????????????? | +----------------------------------------------------+ Best States ------------- Heat Dissipation 25 Energy Generation 10 Energy Capacity 250 Matter Stores 300 Matter Capacity 300 Sight Range 16 Terrain Scan Density 10 Armor Coverage 225 Evasion (%) 55 Item Schematics ----------------- None Robot Schematics ------------------ None Fabricated ------------ Nothing Repaired ---------- Nothing Studied --------- None Alien Tech Used ----------------- None Achievements -------------- Nice Directions, Buddy Challenges ------------ None Game ------ Seed MomentumSpectralAmplifier Manual? 0 Play Time 00:32:21 Cumulative 448.0 hours Start 2025.11.23 @ 21:07:29 End 2025.11.24 @ 16:27:34 Sessions 4 Manual Loads 0 Difficulty Rogue Special Mode None Game No. 166 Rogue 145 Adventurer 21 Explorer 0 Win Type - Total 23 Types 13/1/5/1/0/0/0/2/0/1 Lore% 62 Gallery% 74 Achievement% 60 Wizard Run 0 Options --------- Layout 1 ASCII 0 Keyboard 0 Movement Mouse Keybinds 0 Fullscreen 2 Font 32/SmallcapsGlow Map View 77x35 Zoom Use 0% Tactical HUD 1 Map Filters NONE Filters NONE Steam 1 RUN: 62cb4620-5da1-4190-b05e-548fae370beb